Cogmind - Beta 16 --- EXPLORER MODE // 2025.11.19 @ 09:21:24 Player: K.K.Y. Result: Destroyed by 1T-6QW(R) with Subdweller Machine Gun Performance ------------- Evolutions (0) 0 Regions Visited (3) 600 Robots Destroyed (32) 160 Value Destroyed (1062) 1062 Prototype IDs (15) 300 Alien Tech Used (0) 0 Bonus (90) 90 TOTAL SCORE: 2212 Bonus ------- Follower Combat Kills 90 Cogmind --------- Core Integrity 0/250 Matter 295/300 Energy 100/100 System Corruption 0% Temperature Cool (0) Movement Rolling (120) Ox1 Location -10/Subcaves Parts ------- > --- POWER (1) -------- (None) > --- PROPULSION (2) --- Subdweller Monowheel Subdweller Monowheel > --- UTILITY (3) ------ High-capacity Storage Unit > --- WEAPON (2) ------- Ripper > --- INVENTORY (20) --- Ion Engine Scrap Shield Power Bank Riot Gun Beam Cannon Battle Cannon Mining Laser Welding Torch Makeshift Hammer Makeshift Axe Makeshift Spear Peak State ------------ > --- POWER ------------ Light Nuclear Core > --- PROPULSION ------- Light Treads > --- UTILITY ---------- High-capacity Storage Unit Improved Terrain Scanner Improved Terrain Scanner > --- WEAPON ----------- Ripper Makeshift Spear > --- INVENTORY -------- Ion Engine Light Armor Plating Power Bank Beam Cannon Mining Laser Welding Torch [Rating: 20] Favorites ----------- Power Light Nuclear Core Engine Ion Engine Power Core Light Nuclear Core Propulsion Light Treads Treads Light Treads Wheel Subdweller Monowheel Utility High-capacity Storage Unit Device Improved Terrain Scanner Storage High-capacity Storage Unit Protection Light Armor Plating Weapon Beam Cannon Energy Gun Medium Laser Energy Cannon Beam Cannon Ballistic Gun Assault Rifle Ballistic Cannon Battle Cannon Slashing Weapon Ripper Piercing Weapon Makeshift Spear Build | -11 -10 -10 -10 ------- Run | Yrd Mat Min Sub Slots Evolved 1 | . 1 . . Power . | . . . . Propulsion . | . . . . Utility 1 | . 1 . . Weapon . | . . . . Parts Attached 23 | 5 9 2 7 Power 4 | 1 2 . 1 Engine 2 | 1 1 . . Core 2 | . 1 . 1 Reactor . | . . . . Propulsion 5 | 2 1 . 2 Treads 3 | 2 1 . . Leg . | . . . . Wheel 2 | . . . 2 Hover . | . . . . Flight . | . . . . Utility 6 | 1 2 2 1 Device 2 | . . 1 1 Storage 3 | 1 2 . . Processor . | . . . . Hackware . | . . . . Protection 1 | . . 1 . Artifact . | . . . . Weapon 8 | 1 4 . 3 Energy Gun 2 | . 2 . . Energy Cannon 2 | . 2 . . Ballistic Gun 1 | 1 . . . Ballistic Cannon 1 | . . . 1 Launcher . | . . . . Special Weapon . | . . . . Impact Weapon . | . . . . Slashing Weapon 1 | . . . 1 Piercing Weapon 1 | . . . 1 Special Melee Weapon . | . . . . Unidentified Prototypes . | . . . . Parts Lost 7 | . . 1 6 Power 2 | . . . 2 Propulsion 2 | . . 1 1 Utility 2 | . . . 2 Weapon 1 | . . . 1 Highest Loss Streak 4 | . . 1 4 To Critical Strikes . | . . . . Average Backups 6 | . 2 5 7 Power . | . . . . Propulsion . | . . . . Utility 2 | . . 3 1 Weapon 2 | . . 1 3 Tool/Special . | . . . . Unused Backups 11 | 2 . . 9 Power 1 | . . . 1 Propulsion 2 | 2 . . . Utility 2 | . . . 2 Weapon 5 | . . . 5 Tool/Special 1 | . . . 1 Average Slot Usage (%) 58 | . 65 60 55 Core 6 | . 2 12 4 Treads 11 | . 20 16 4 Device 4 | . . . 7 Storage 12 | . 16 12 12 Protection 1 | . . . 2 Energy Cannon 7 | . 8 16 2 Ballistic Gun 1 | . 6 . . Ballistic Cannon 3 | . . . 6 Slashing Weapon 5 | . . . 9 Piercing Weapon 1 | . . . 2 Peak Build Rating 20 | 5 8 10 20 Average Rating 9 | 3 5 7 11 On Entrance 5 | . 5 8 10 Avg Prop Armor Cover (%) . | . . . . Naked Turns . | . . . . Heaviest Build 54 | 17 51 52 54 Greatest Support 40 | 40 40 40 40 Greatest Overweight (x) 15 | . 11 2 15 Average Overweight (x) 3 | . . 1 6 Largest Inventory Capacity 20 | 10 20 20 20 Average Capacity 19 | 7 15 20 20 Most Carried 13 | 4 7 8 13 Average Carried 6 | . 2 5 8 Final Capacity 20 | 10 20 20 20 Final Carried 12 | . 4 4 12 Class Distribution -------------------- 100% | Hacker-Mutant Dominant Class ---------------- Hacker-Mutant | -10/Materials Hacker-Mutant | -10/Mines Hacker-Mutant | -10/Subcaves Resources | -11 -10 -10 -10 ----------- Run | Yrd Mat Min Sub Matter Collected 777 | 199 410 68 100 Remotely . | . . . . Salvage Created 1223 | . 752 205 266 Parts 67 | . 44 6 17 Haulers Intercepted 2 | . 2 . . Recyclers Shooed 1 | . 1 . . Parts Field Recycled . | . . . . Retrieved Matter . | . . . . Parts Self-Destructed . | . . . . Prevented . | . . . . Parts Restored . | . . . . Kills | -11 -10 -10 -10 ------- Run | Yrd Mat Min Sub Combat Hostiles Destroyed 29 | . 16 6 7 Melee 6 | . . . 6 Guns 11 | . 11 . . Cannons 12 | . 5 6 1 Classes Destroyed 8 | . 4 3 1 Hauler 2 | . 2 . . Watcher 2 | . 2 . . Swarmer 2 | . 2 . . Grunt 16 | . 14 2 . Sentry 2 | . . 2 . Demolisher 1 | . . 1 . Subdweller 7 | . . . 7 Assembled 1 | . . 1 . Best Kill Streak 3 | . 3 2 2 Combat Bots Only 3 | . 3 2 2 Max Kills in Single Turn 1 | . 1 1 1 Gunslinging . | . . . . Exploded . | . . . . Melee 1 | . . . 1 Uniques/NPCs Destroyed . | . . . . Combat | -11 -10 -10 -10 -------- Run | Yrd Mat Min Sub Hostile Shots Fired 153 | . 68 27 58 Missed 37 | . 16 5 16 Hits 116 | . 52 22 42 Projectile 116 | . 52 22 42 AOE 3 | . . 3 . Critical Strikes 1 | . . . 1 Damage Taken 1162 | . 336 232 594 Core 258 | . 53 64 141 Absorbed by Shields . | . . . . Ignored by Resistances 719 | . 225 143 351 Core Remaining (%) 100 | 100 . . . Volleys Fired 99 | . 69 21 9 Largest 2 | . 2 2 1 Hottest 120 | . 120 120 60 Shots Fired 127 | . 84 34 9 Gun 74 | . 74 . . Cannon 53 | . 10 34 9 Launcher . | . . . . Special . | . . . . Kinetic 71 | . 63 . 8 Thermal 56 | . 21 34 1 Explosive . | . . . . Electromagnetic . | . . . . Robot Hit Streak 29 | . 29 20 14 Robot Miss Streak 1 | . 1 1 . Penetration Max . | . . . . Secondary Targets . | . . . . Shots Hit Robots 138 | . 76 31 31 Core Hits 52 | . 34 10 8 Critical Kills . | . . . . Critical Parts Destroyed 1 | . 1 . . Critical Strikes 1 | . 1 . . Destroy 1 | . 1 . . Melee Attacks 34 | . . . 34 Impact . | . . . . Slashing 30 | . . . 30 Piercing 4 | . . . 4 Sneak Attacks . | . . . . Combat Hostiles . | . . . . Follow-up Attacks 1 | . . . 1 Damage Inflicted 2424 | . 971 559 894 Guns 846 | . 846 . . Cannons 821 | . 125 555 141 Explosions . | . . . . Melee 753 | . . . 753 Ramming 4 | . . 4 . Kinetic 875 | . 734 . 141 Thermal 792 | . 237 555 . Explosive . | . . . . Electromagnetic . | . . . . Impact . | . . . . Slashing 718 | . . . 718 Piercing 35 | . . . 35 Highest Corruption . | . . . . Average Corruption . | . . . . Corruption Purged . | . . . . Corruption Blocked . | . . . . Overload Shots . | . . . . Overflow Damage . | . . . . Projectiles . | . . . . Explosions . | . . . . Melee . | . . . . Knockbacks 4 | . . . 4 Impact . | . . . . Kinetic 4 | . . . 4 Secondary . | . . . . Self-Inflicted Damage . | . . . . Shots . | . . . . Rammed 1 | . . 1 . Targets Rammed 1 | . . 1 . Kicked . | . . . . Crushed . | . . . . Highest Temperature 476 | . 222 476 . Average Temperature 154 | . 67 188 . Received Heat Transfer 516 | . 282 93 141 Effects 4 | . . 4 . Shutdowns 1 | . . 1 . Energy Bleed 1 | . . 1 . Matter Decay 1 | . . 1 . Short Circuit 1 | . . 1 . Siege Activations . | . . . . Martial Activations . | . . . . Shielding Activations . | . . . . Robots Disrupted . | . . . . Combat Hostiles . | . . . . Robots Corrupted . | . . . . Combat Hostiles . | . . . . Parts Fried . | . . . . Impact Corruptions . | . . . . Robots Melted . | . . . . Combat Hostiles . | . . . . Parts Melted 2 | . . 2 . Heat Transferred 1739 | . 592 1147 . Parts Sabotaged . | . . . . Parts Stolen . | . . . . Parts Stripped . | . . . . Power Chain Reactions . | . . . . Alert | -11 -10 -10 -10 ------- Run | Yrd Mat Min Sub Maximum Alert Level . | . . . . Low Security (%) 100 | 100 100 100 . Level 1 . | . . . . Level 2 . | . . . . Level 3 . | . . . . Level 4 . | . . . . Level 5 . | . . . . High Security . | . . . . Max Security . | . . . . Peak Influence 92 | . 92 40 . Initial . | . . . . Average 6 | . 17 . . Influence Increases 666 | . 505 110 51 Destroy 0b10 Robot/C 460 | . 320 100 40 Destroy 0b10 Robot/NC 20 | . 20 . . Destroy Leader 88 | . 68 10 10 Allied During Kill 1 | . . . 1 Successful Hack 36 | . 36 . . Destroy Structure 1 | . 1 . . Lose Combat Pursuer 60 | . 60 . . Influence Decreases 666 | . 505 110 51 Time Decay 646 | . 505 110 31 Lost Ally 20 | . . . 20 Squads Dispatched 3 | . 3 . . Investigation 3 | . 3 . . Extermination . | . . . . Reinforcement . | . . . . Assault . | . . . . Garrison . | . . . . Intercept . | . . . . Searches Triggered . | . . . . Construction Impeded . | . . . . Haulers Reinforced . | . . . . Active Scanning Responses . | . . . . Cargo Convoy Interrupts . | . . . . Stealth | -11 -10 -10 -10 --------- Run | Yrd Mat Min Sub Distress Signals 2 | . 2 . . Communications Jammed . | . . . . Distress Signals . | . . . . Times Spotted 40 | . 23 7 10 Peak Tracking Total 3 | . 3 2 2 Tactical Retreats 5 | . 4 1 . Traps | -11 -10 -10 -10 ------- Run | Yrd Mat Min Sub Traps Triggered 5 | . 5 . . Indirectly . | . . . . Trap Hack Attempts . | . . . . Triggered . | . . . . Disarmed . | . . . . Reprogrammed . | . . . . Reused . | . . . . Traps Extracted . | . . . . Installed . | . . . . Triggered . | . . . . Machines | -11 -10 -10 -10 ---------- Run | Yrd Mat Min Sub Machines Disabled 1 | . . . 1 Max in Single Turn 1 | . . . 1 Machines Repaired . | . . . . Machines Dismantled . | . . . . Machines Sabotaged . | . . . . Overloaded Fab Kills . | . . . . Hacking | -11 -10 -10 -10 --------- Run | Yrd Mat Min Sub Machines Accessed 9 | . 7 . 2 Terminals 7 | . 7 . . Fabricators . | . . . . Repair Stations . | . . . . Recycling Units . | . . . . Scanalyzers . | . . . . Garrison Access . | . . . . Total Hacks 31 | . 27 . 4 Successful 22 | . 18 . 4 Failed 9 | . 9 . . Catastrophic . | . . . . Database Lockouts . | . . . . Manual . | . . . . Terminals 27 | . 27 . . Fabricators . | . . . . Repair Stations . | . . . . Recycling Units . | . . . . Scanalyzers . | . . . . Garrison Access . | . . . . Terminal Hacks 22 | . 18 . 4 Record 3 | . . . 3 Robot Analysis 2 | . 2 . . Prototype ID Bank 2 | . 2 . . Branch Access Points 1 | . 1 . . Emergency Access Points 3 | . 3 . . Machine Index 1 | . 1 . . Maintenance Status 1 | . 1 . . Security Status 1 | . 1 . . Surveillance Status 1 | . 1 . . Patrol Status 1 | . 1 . . Hauler Manifests 1 | . 1 . . Registered Components 1 | . 1 . . Registered Prototypes 1 | . 1 . . Zone Layout 2 | . 2 . . Proto ID Catalog 1 | . . . 1 Fabricator Hacks . | . . . . Repair Station Hacks . | . . . . Recycling Unit Hacks . | . . . . Scanalyzer . | . . . . Garrison Access Hacks . | . . . . Unauthorized Hacks . | . . . . Terminals . | . . . . Fabricators . | . . . . Repair Stations . | . . . . Recycling Units . | . . . . Scanalyzers . | . . . . Garrison Access . | . . . . Data Cores Recovered . | . . . . Used . | . . . . Hacking Detections 5 | . 5 . . Full Trace Events 4 | . 4 . . Feedback Events . | . . . . Feedback Blocked . | . . . . Robot Schematics Acquired . | . . . . Robots Built . | . . . . Authchips . | . . . . Time . | . . . . Total Robot Build Rating . | . . . . Part Schematics Acquired . | . . . . Parts Built . | . . . . Authchips . | . . . . Time . | . . . . Total Part Build Rating . | . . . . Part Studies Acquired . | . . . . Parts Repaired . | . . . . Time . | . . . . Parts Recycled . | . . . . Recycled Matter . | . . . . Retrieved Matter . | . . . . Retrieved Components . | . . . . Parts Scanalyzed . | . . . . Part Schematics Acquired . | . . . . Parts Damaged . | . . . . Bothacking | -11 -10 -10 -10 ------------ Run | Yrd Mat Min Sub Used RIF Installer . | . . . . Robots Hacked . | . . . . Non-combat . | . . . . Combat . | . . . . Robot Hacks Applied . | . . . . Relay Couplers Released . | . . . . Fabnet Peak Effective % . | . . . . Robots Rewired . | . . . . Allies Hacked . | . . . . Hacks Repelled . | . . . . Allies | -11 -10 -10 -10 -------- Run | Yrd Mat Min Sub Total Allies 3 | . . 3 . Largest Group 3 | . . 3 3 Highest-Rated Group 40 | . . 40 40 Highest-Rated Ally 16 | . . 16 16 Total Orders . | . . . . Ally Attacks 41 | . . . 41 Total Damage 326 | . . . 326 Kills 4 | . . . 4 Allies Corrupted . | . . . . Allies Melted . | . . . . Intel | -11 -10 -10 -10 ------- Run | Yrd Mat Min Sub Active Infowar (turns) 1731 | . . 191 1540 Terrain 1731 | . . 191 1540 Robot Analysis Total 2 | . 2 . . Derelict Logs Recovered 2 | . . . 2 Drone Launches . | . . . . Drone Recoveries . | . . . . Exploration | -11 -10 -10 -10 ------------- Run | Yrd Mat Min Sub Turns Passed 7422 | 81 1264 2347 3730 Spaces Moved 2073 | 50 505 748 770 Core 275 | 10 16 . 249 Treads 1725 | 40 489 748 448 Legs . | . . . . Wheels 73 | . . . 73 Hover . | . . . . Flight . | . . . . Fastest Speed 50 | 50 160 240 120 Average Speed 327 | 138 207 287 457 Slowest Speed 800 | 160 600 320 800 Overloaded Moves . | . . . . Propulsion Burnouts . | . . . . Robots Hopped . | . . . . Potential Cave-ins . | . . . . Cave-ins Triggered . | . . . . Exploration Rate (%) 58 | 5 87 96 47 Regions Visited 3 Branch Regions 2 Pre-discovered Areas 2 | . . . 2 Known Exits Taken 3 | 1 1 1 . Unknown Exits Taken . | . . . . Scrap Searched 4 | . . . 4 Spaces Dug . | . . . . Terrain Destroyed . | . . . . Melee . | . . . . Projectile . | . . . . AOE . | . . . . Terrain Rammed . | . . . . Walls Destroyed . | . . . . Machines Disabled . | . . . . Actions | -11 -10 -10 -10 --------- Run | Yrd Mat Min Sub Total 2548 | 63 642 915 928 Wait 255 | . 24 136 95 Move 2070 | 49 504 747 770 Hop . | . . . . Pick Up 42 | 7 19 4 12 Fast Attach . | . . . . Attach 28 | 5 14 2 7 Detach 8 | . 4 1 3 Swap 4 | . 3 . 1 Drop 11 | 2 5 3 1 Fire 99 | . 69 21 9 Melee 30 | . . . 30 Ram . | . . . . Kick . | . . . . Crush 1 | . . 1 . Escape Stasis . | . . . . Rewire . | . . . . Trap . | . . . . Miscellaneous . | . . . . Route ------- -11/Scrapyard -10/Materials (discovered 5 exits: *Mat x2 / *Min x2 / *Sub) -10/Mines (discovered 3 exits: *Mat x2 / *Sub) -10/Subcaves (discovered 1 exit: *Mat) History --------- Turn | Location | Event 5 | -11/Scrapyard | Identified exit to Materials 5 | -11/Scrapyard | Discovered exit to Materials (range 15) 82 | -11/Scrapyard | Entered Materials 82 | -10/Materials | Evolved 1 slot: Utility x1 220 | -10/Materials | Identified exit to Mines 220 | -10/Materials | Discovered exit to Mines (range 15) 311 | -10/Materials | Build established: Hacker-Mutant 357 | -10/Materials | Identified exit to Subcaves 357 | -10/Materials | Discovered exit to Subcaves (range 7) 857 | -10/Materials | Discovered exit to Mines (range 8) 969 | -10/Materials | Identified exit to Materials 969 | -10/Materials | Discovered exit to Materials (range 8) 1180 | -10/Materials | Discovered exit to Materials (range 16) 1346 | -10/Materials | Entered Mines 1565 | -10/Mines | Discovered exit to Materials (range 10) 1929 | -10/Mines | Assembled infested the area 1950 | -10/Mines | Discovered exit to Subcaves (range 15) 2144 | -10/Mines | A weapon hastily lodged in a ceiling crevice suddenly fell to the ground 2158 | -10/Mines | Discovered exit to Materials (range 16) 3212 | -10/Mines | Assisted by bots powering up and referring to "LRC-V3" 3693 | -10/Mines | Entered Subcaves 3693 | -10/Subcaves | Accompanied by 3 allies 4222 | -10/Subcaves | Learned location of Zion (-7) 4367 | -10/Subcaves | Visited 4L-MR0's lab 4404 | -10/Subcaves | Found Power Bank 4528 | -10/Subcaves | Shifting Twisted Machinery released Sub. Power Source 4657 | -10/Subcaves | Shifting Twisted Machinery released Sub. Power Source 4984 | -10/Subcaves | Met a Zionite searching for "candidates" 5106 | -10/Subcaves | Shifting Twisted Machinery released Mak. Hammer 5120 | -10/Subcaves | Shifting Twisted Machinery released Battle Cannon 5232 | -10/Subcaves | Core integrity fell below 50% 5264 | -10/Subcaves | Lost 4 parts (1p1n2u) 5380 | -10/Subcaves | Identified exit to Materials 5380 | -10/Subcaves | Discovered exit to Materials (range 8) 5532 | -10/Subcaves | Visited Clippyterm 5556 | -10/Subcaves | Learned 40 Factory zone layouts 7043 | -10/Subcaves | Learned Materials terminal intel 7409 | -10/Subcaves | Core integrity fell below 20% 7423 | -10/Subcaves | Destroyed by 1T-6QW(R) with Subdweller Machine Gun Last Messages --------------- 07268_ Acquired 31 matter. 07284_ Acquired Sub. Monowheel. 07289_ Subatomizers dissect the Sub. Optics. 07294_ Searching scrap... 07294_ Found Mak. Axe. 07294_ Found 55 Matter. 07295_ Acquired 25 matter. 07296_ Acquired Mak. Axe. 07299_ Searching scrap... 07299_ Found Riot Gun. 07299_ Found Piercing Trap. 07299_ Found 66 Matter. 07301_ Acquired Riot Gun. 07316_ Subatomizers dissect the Sub. Optics. 07373_ SF-MYE(R): "WEHOME!" 07380_ SF-MYE(R) destroyed. 07385_ Acquired Sub. Monowheel. 07390_ Subatomizers dissect the Disposable Heat Sink. 07406_ Battle Cannon destroyed. Map ----- +----------------------------------------------------+ | ??????????????????# ###??????#???????# """"## | | ???????#??????????# #???????????????# """"# | | ????????????#?????# # ##???????????????# """ | | ??????????????????# ####??????????????#?# """ | | ??????????????????## ###???????????????### " | | ?????????????#???### ##?????????????#?# " | | ???????#?????????# #???????????????##### " | | ?????????????###### #???????????????????## ""# | | ?????######### ###% #???????????????##???# ## | | #????# ## ## &%!# ##?????????????#?#???## ### | | ###### " ""###?????????????#??????#"*### | | ## ## " % #?????????#??#?????????# | | % "#????????????#?????#???# | | #### ## # " #??????????????????##### | | #??######## ####???????????????#### | | #?????????## "" ########????????????# | | #?????????#"#### # #####??#???#?## | | ?????????# #??# #????#?##?# | | ?????????##???#### ##! #?##"#? ??# | | ?????????????????#######|% ## "" | | ???????????????????????#!* # " " #### | | ???????????????????????# # "" #?####### ##?## | | ?????????????????????#### """#?????#?## ????# | | ?????????????????# # # # ""#???#?#?### #????# | | ?????????????????# #???#???#?##?#??## | | ?????????????????# @ "##????#?#???#???## | | ????????????????# ## #R "##????????#####?## | | ??????#?????????## ??###### ""#???#?##### %"##### | | ????????????????# ?????????#" "#?#??# ####= "### | | ????????????????#???????????#""#???##" ####" "## | | ?????????????????????????????# ####?## ##" ###" | | ?????????????????????????????####??##" ### #"" | | #?#??????????????????????#?????#??#?#"" #?# | | ####??????##??? ??????????#???????#?#"X #?# | | ##?????#??#??##??????? ??????????#"" ### #" | | #???????#?????#????????????##???#" #### ## | | ##????##?###????????????????###?#" ##" "# | | " ##### ## #??????????????????#??# #/## "## | | " ?????????"""????????##""# ##% "## | | "" ????????#""""" ??#?????#### "### | | "" #????????"""" " ???????#?### """ ### | | "" ## ##?#?????"" " ????#?#????########## | | """## #?###???? "" #??#?????#?##?##?????# # | | " ##""####?# " #?#??#???#?????#?#???### | | " " " #?? #??????????#???#?????### | | # " ## ##""#???# ##????##???#??#?###### # | | ## "" [#### #""##### ##???##?????#??#???## | | ### " =%* ## ##?#?#?#??##?????## | | #?### #### #????????????#?### | | #???# #??# # ### ##????##??#??????# | +----------------------------------------------------+ Best States ------------- Heat Dissipation 25 Energy Generation 14 Energy Capacity 250 Matter Stores 300 Matter Capacity 300 Sight Range 16 Terrain Scan Range 16 Terrain Scan Density 10 Armor Coverage 150 Resistance: KI 35 Resistance: TH 35 Resistance: EX 35 Resistance: EM 35 Resistance: I 35 Resistance: S 35 Resistance: P 35 Evasion (%) 50 Recoil Reduction 2 Offensive Hacking 20 Item Schematics ----------------- None Robot Schematics ------------------ None Fabricated ------------ Nothing Repaired ---------- Nothing Studied --------- None Alien Tech Used ----------------- None Achievements -------------- None Challenges ------------ None Game ------ Seed ExpertRegenerativeMegatreads Manual? 0 Play Time 00:24:48 Cumulative 113.9 hours Start 2025.11.19 @ 08:59:01 End 2025.11.19 @ 09:21:24 Sessions 1 Manual Loads 0 Difficulty Explorer Special Mode None Game No. 129 Rogue 0 Adventurer 0 Explorer 129 Win Type - Total 0 Types 0/0/0/0/0/0/0/0/0/0 Lore% 64 Gallery% 63 Achievement% 49 Wizard Run 0 Options --------- Layout 1 ASCII 0 Keyboard 0 Movement Mouse Keybinds 0 Fullscreen 1 Font 24/Smallcaps Map View 50x35 Zoom Use 0% Tactical HUD 1 Map Filters NONE Filters NONE Steam 1 RUN: 69740641-330f-413c-ac27-ffdaca1e1490